bitfinex/quotes_ETHUSD_20260109
["timestamp","ask_amount","ask_price","bid_price","bid_amount"]
[1767965707154,0.002,3102.9,3101.7,0.28224038]
[1767965707459,0.002,3103.2,3101.8,0.98368483]
[1767965707611,0.00080128,3103.4,3102.0,0.98368483]
[1767965707943,0.00080128,3103.4,3102.1,6.4472454]
[1767965708303,0.00080128,3103.4,3102.2,0.03223518]
[1767965709345,0.92718428,3103.4,3102.1,6.4472454]
[1767965709636,0.0322513,3103.3,3102.0,3.22368334]
[1767965709838,0.0322513,3102.9,3101.6,0.001]
[1767965710137,0.25,3102.8,3101.6,0.001]
[1767965711412,0.926383,3103.6,3101.6,0.001]
[1767965711620,0.926383,3103.6,3101.6,0.03324142]
[1767965711827,0.0008056,3103.8,3101.7,12.89615372]
[1767965712034,0.25,3103.7,3101.8,1.57517885]
[1767965712345,0.25,3103.7,3101.9,0.98368483]
[1767965712346,3.47205822,3103.7,3101.9,0.98368483]
[1767965712647,1.1771886,3103.8,3102.0,0.03223726]
[1767965712816,6.44414766,3103.6,3102.1,0.25]
[1767965713028,3.25414225,3104.6,3103.7,0.0016008]
[1767965713029,0.00080048,3104.6,3103.7,0.0016008]
[1767965713215,0.00080048,3104.6,3103.7,0.25]
[1767965713417,0.00080048,3104.6,3103.7,0.00160112]
[1767965713634,0.00080048,3104.6,3103.7,0.25160112]
[1767965713936,0.00080048,3104.6,3103.8,6.44371414]
[1767965714138,0.00080048,3104.6,3103.7,0.25160112]
[1767965714442,0.00080048,3104.6,3103.7,3.4735295]
[1767965714738,0.00080048,3104.6,3103.7,0.00160112]
[1767965717240,0.00080048,3104.6,3103.7,0.25160112]
[1767965717600,0.00080024,3105.0,3103.7,0.25160112]
[1767965717601,0.00080024,3105.0,3103.8,0.98368483]
[1767965717804,0.00080024,3105.0,3103.9,6.44350654]
[1767965718037,0.00080024,3105.0,3104.0,1.06490019]
[1767965718238,0.00080024,3105.0,3104.0,2.04858502]
[1767965718413,0.00080032,3105.7,3104.0,2.04858502]
[1767965718612,0.00080032,3105.7,3104.3,0.00080064]
[1767965718613,0.002,3104.6,3104.3,0.00080064]
[1767965719044,6.69061988,3105.7,3104.3,0.00080064]
[1767965719247,0.66906199,3105.6,3104.3,0.00080064]
[1767965719410,0.70131329,3105.6,3104.3,0.00080064]
[1767965719612,0.926383,3105.5,3104.3,0.00080064]
[1767965719810,6.44018676,3105.5,3104.3,0.00080064]
[1767965720028,6.69018676,3105.5,3104.3,0.00080064]
[1767965720225,0.73915001,3105.4,3104.3,0.00080064]
[1767965721535,0.77140131,3105.4,3104.3,0.00080064]
[1767965722057,3.95936633,3105.4,3104.3,0.00080064]
[1767965722586,7.17958265,3105.4,3104.3,0.00080064]
[1767965722967,0.29177386,3105.3,3104.3,0.00080064]
[1767965723133,0.0322513,3104.8,3104.0,0.00080048]
[1767965723326,0.25,3104.7,3104.0,0.00080048]
[1767965723857,0.926383,3104.6,3104.0,0.00080048]
[1767965724362,3.22102686,3104.6,3104.0,0.00080048]
[1767965724655,0.0322513,3104.3,3103.7,0.00160112]
[1767965724814,0.0008064,3103.8,3102.7,3.22375386]
[1767965725012,0.0008064,3103.8,3102.8,10.68450798]
[1767965725246,0.0008064,3103.8,3102.9,0.98368483]
[1767965725451,0.0008064,3103.8,3103.0,0.03222687]
[1767965725675,0.00160112,3104.4,3103.4,0.0008072]
[1767965727185,0.00160112,3104.4,3103.4,0.03302992]
[1767965727485,0.00160112,3104.4,3103.4,1.01671475]
[1767965728282,0.00160112,3104.4,3103.5,1.23368483]
[1767965728603,0.00160112,3104.4,3103.6,9.69841471]
[1767965728757,0.00080048,3105.0,3103.7,0.99644291]
[1767965728954,0.00080048,3105.0,3103.7,0.00160144]
[1767965728955,0.92718348,3105.0,3103.7,0.00160144]
[1767965729292,0.926383,3104.7,3103.7,0.00160144]
[1767965729592,0.00160144,3104.4,3103.4,0.0008072]
[1767965729802,0.25,3104.3,3103.4,0.0008072]
[1767965730252,0.00160144,3104.4,3104.0,0.001]
[1767965731980,0.00160144,3104.4,3103.4,0.0008072]
[1767965732353,0.00160144,3104.4,3103.6,3.22203163]
[1767965732549,0.00160144,3104.4,3103.4,3.25414275]
[1767965732550,0.00160144,3104.4,3103.4,3.22304023]
[1767965732757,0.67098267,3104.4,3103.4,0.0008072]
[1767965732958,0.70323397,3104.4,3103.4,0.0008072]
[1767965733370,7.78074423,3103.8,3102.7,0.00080096]
[1767965733564,0.25,3103.7,3102.7,0.00080096]
[1767965733771,0.80315514,3103.6,3102.7,0.00080096]
[1767965734399,0.0322513,3104.2,3102.7,0.00080096]
[1767965734400,0.002,3105.1,3103.7,0.0008008]
[1767965734693,0.002,3105.1,3103.8,0.95321821]
[1767965734694,0.0322513,3104.9,3103.8,0.95321821]
[1767965734896,0.0342513,3105.1,3103.9,0.98543574]
[1767965734897,0.0322513,3104.8,3103.9,0.98543574]
[1767965735061,0.0342513,3105.1,3103.9,0.98543574]
[1767965735262,0.0322513,3104.8,3103.9,0.98543574]
[1767965735463,0.0342513,3105.1,3103.9,0.98543574]
[1767965735983,0.002,3105.1,3103.9,0.98543574]
[1767965736521,0.002,3105.1,3104.0,9.66494844]
[1767965736679,0.002,3105.1,3104.1,1.09725387]
[1767965736884,0.0322513,3105.3,3104.2,0.95321821]
[1767965737080,0.0322513,3105.1,3104.2,0.95321821]
[1767965737304,0.0322513,3105.3,3104.2,0.95321821]
[1767965737615,0.00080064,3105.6,3104.2,0.95321821]
[1767965737784,0.00080064,3105.6,3105.1,0.0201837]
[1767965738500,0.00080064,3105.6,3104.4,0.95321821]
[1767965738501,0.0322513,3105.3,3104.4,0.95321821]
[1767965738707,0.0322513,3105.3,3104.6,3.22102505]
[1767965738869,0.0322513,3105.5,3104.6,3.22102505]
[1767965739071,0.0322513,3105.5,3104.6,6.44205191]
[1767965739389,0.0322513,3105.5,3104.0,3.22243872]
[1767965739390,0.0322513,3104.2,3103.4,0.000808]
[1767965739562,0.00160176,3104.4,3103.4,3.22219938]
[1767965739563,0.25,3104.1,3103.4,3.22219938]
[1767965739767,0.03385306,3104.4,3103.5,0.98543989]
[1767965739768,0.00160176,3104.4,3103.5,0.98543989]
[1767965739963,6.47243806,3105.5,3103.5,0.98543989]
[1767965739964,0.25,3104.9,3103.8,0.95321821]
[1767965740201,0.0322513,3105.2,3104.0,0.95321821]
[1767965740202,0.25,3105.2,3104.0,0.95321821]
[1767965740396,0.25,3105.2,3104.2,0.95321821]
[1767965740696,0.25,3105.2,3104.3,7.39589449]
[1767965740903,0.25,3105.2,3104.0,0.00080096]
[1767965741411,0.34703125,3105.1,3104.0,0.00080096]
[1767965742320,3.22023472,3105.4,3104.2,3.22142455]
[1767965742518,0.00080064,3105.6,3104.3,3.25355152]
[1767965742828,0.00080064,3105.6,3104.3,0.001]
[1767965742829,3.22019707,3105.4,3104.3,0.001]
[1767965743428,0.25,3105.3,3104.3,0.001]
[1767965743730,0.25,3105.2,3104.3,0.001]
[1767965744547,0.32209364,3105.4,3104.3,0.001]
[1767965744705,0.00080064,3105.6,3104.5,0.95321821]
[1767965745050,0.002,3105.9,3104.5,0.98542951]
[1767965745256,0.002,3105.9,3104.6,0.95321821]
[1767965745411,0.00080048,3106.5,3104.8,0.95321821]
[1767965745606,0.25080048,3106.5,3104.8,0.95321821]
[1767965745845,0.25,3106.4,3104.8,0.95321821]
[1767965746810,0.91887171,3106.4,3104.9,9.66214692]
[1767965747015,0.66887171,3106.4,3104.9,9.66214692]
[1767965747212,0.25080048,3106.5,3104.9,9.66214692]
[1767965747447,0.25080048,3106.5,3104.9,12.88286256]
[1767965747847,0.00080048,3106.5,3104.9,9.66214692]
[1767965748052,0.249,3106.4,3105.0,0.03220611]
[1767965748569,0.00080048,3106.5,3105.0,0.93559155]
[1767965748862,0.00080048,3106.5,3105.4,0.90338544]
[1767965749211,0.00080048,3106.5,3105.3,6.44060154]
[1767965750155,0.249,3106.4,3105.3,7.34398698]
[1767965750721,0.00080048,3106.5,3105.7,0.0322513]
[1767965750938,0.00080048,3106.5,3105.8,3.21978234]
[1767965751131,0.249,3106.4,3105.8,6.43956468]
[1767965751544,0.00080048,3106.5,3105.9,0.0322513]
[1767965752145,0.00080048,3106.5,3105.8,7.99013172]
[1767965752320,0.24980048,3106.5,3105.8,7.99013172]
[1767965752523,0.24980048,3106.5,3105.8,7.34295012]
[1767965752836,0.249,3106.4,3105.8,7.34295012]
[1767965753620,0.002,3106.7,3105.9,0.0322513]
[1767965753827,0.249,3106.6,3105.9,0.0322513]
[1767965754029,0.249,3106.5,3105.8,7.34295012]
[1767965754363,1.71768606,3108.5,3106.2,0.90338544]
[1767965754540,1.71768606,3108.5,3106.6,0.90338544]
[1767965754541,0.249,3107.8,3106.6,0.90338544]
[1767965754739,3.21738404,3108.2,3106.6,0.90338544]
[1767965754952,0.249,3107.6,3106.7,7.3410846]
[1767965755125,3.21820454,3108.1,3106.8,0.90338544]
[1767965755333,0.24980016,3107.5,3106.8,0.90338544]
[1767965755930,0.00080016,3107.5,3106.8,0.90338544]
[1767965756126,0.24980016,3107.5,3106.8,0.90338544]
[1767965756559,0.00080016,3107.5,3106.8,0.90338544]
[1767965756763,0.24980016,3107.5,3106.8,0.90338544]
[1767965756927,0.00080016,3107.5,3106.9,3.21864237]
[1767965757128,0.00080016,3107.5,3106.8,4.12210432]
[1767965757329,0.002,3107.7,3106.9,0.90338544]
[1767965757576,0.249,3108.0,3106.9,0.90338544]
[1767965757778,0.249,3107.9,3106.9,0.90338544]
[1767965757924,0.249,3107.9,3106.9,1.9594251]
[1767965758130,0.00080024,3108.1,3106.9,1.9594251]
[1767965758449,0.00080024,3108.1,3106.8,0.00080032]
[1767965758450,0.249,3108.0,3106.8,0.00080032]
[1767965758631,0.249,3108.0,3106.8,3.21952907]
[1767965758826,6.43521348,3107.9,3106.8,0.00080032]
[1767965759044,3.21760674,3107.9,3106.8,0.00080032]
[1767965759368,0.34666067,3107.8,3106.8,0.00080032]
[1767965759569,0.59566067,3107.8,3106.8,0.00080032]
[1767965759740,0.00080024,3108.1,3106.8,0.90418576]
[1767965760084,0.251,3108.6,3107.3,0.90338544]
[1767965760584,0.002,3108.6,3107.3,0.90338544]
[1767965760937,0.249,3108.5,3107.4,6.43624894]
[1767965761470,0.002,3108.6,3107.4,6.43624894]
[1767965761675,0.249,3108.5,3107.4,7.07987383]
[1767965761876,0.249,3108.5,3107.4,3.21812447]
[1767965762282,0.249,3108.4,3107.4,6.43624894]
[1767965762577,0.249,3108.4,3107.3,3.21818135]
[1767965762753,0.249,3108.4,3107.1,0.00080048]
[1767965762754,0.002,3108.6,3107.1,0.00080048]
[1767965762965,0.002,3108.9,3107.5,6.43604182]
[1767965763169,0.002,3108.9,3107.6,0.74314785]
[1767965763772,0.002,3108.9,3107.5,3.21802091]
[1767965763773,0.002,3108.9,3107.5,6.43604182]
[1767965763987,0.0322513,3108.8,3107.4,0.00080096]
[1767965764273,0.0322513,3108.6,3107.4,3.218883]
[1767965764662,0.0322513,3108.2,3107.4,0.00080096]
[1767965764849,0.0322513,3108.6,3107.4,0.00080096]
[1767965764850,0.25952256,3108.5,3107.4,0.00080096]
[1767965765051,6.43417834,3108.4,3107.4,0.00080096]
[1767965765267,0.66937009,3108.3,3107.4,0.00080096]
[1767965765871,0.66937009,3108.3,3106.8,0.00080032]
[1767965765872,0.25952256,3107.7,3106.8,0.00080032]
[1767965766097,0.25952256,3107.7,3106.5,0.0008016]
[1767965766098,0.26032288,3107.5,3106.5,0.0008016]
[1767965766240,0.26032288,3107.5,3105.6,3.21995573]
[1767965766241,0.29257418,3107.5,3105.6,3.21995573]
[1767965766558,0.0008016,3106.9,3105.7,3.21986151]
[1767965766752,0.0008016,3106.9,3105.6,3.21994848]
[1767965766952,0.0008016,3106.9,3105.5,3.22005286]
[1767965767158,0.0008016,3106.9,3105.4,3.22017476]
[1767965767375,0.0008016,3106.9,3105.4,7.76027508]
[1767965767544,0.249,3106.8,3105.5,0.03220093]
[1767965767880,0.249,3106.8,3105.8,0.001]
[1767965768080,0.002,3106.6,3105.8,0.001]
[1767965768280,0.249,3106.5,3105.8,0.001]
[1767965768453,0.249,3106.4,3105.8,0.001]
[1767965768651,0.002,3106.6,3105.8,0.001]
[1767965768852,0.249,3106.4,3105.8,0.001]
[1767965769261,0.249,3106.3,3105.8,0.001]
[1767965771479,0.002,3106.6,3105.8,0.001]
[1767965771656,0.1706533,3106.2,3105.8,0.001]
[1767965772347,0.002,3106.6,3105.8,0.001]
[1767965772552,0.249,3106.5,3105.8,0.001]
[1767965773149,3.46812921,3106.5,3105.8,0.001]
[1767965773472,0.002,3106.6,3105.8,0.001]
[1767965773473,0.249,3106.4,3105.8,0.001]
[1767965773844,0.002,3106.6,3105.8,0.001]
[1767965774049,0.0028016,3106.9,3106.0,0.99788577]
[1767965774250,0.0028016,3106.9,3106.2,0.99788577]
[1767965775388,0.0028016,3106.9,3106.3,6.43852814]
[1767965776587,0.0028016,3106.9,3105.8,0.001]
[1767965776883,0.00080032,3107.5,3106.5,0.0008024]
[1767965777187,0.0322513,3107.4,3106.5,0.0008024]
[1767965777488,0.0322513,3106.8,3105.8,0.001]
[1767965777711,0.249,3106.7,3105.8,0.001]
[1767965777853,0.0322513,3106.6,3105.8,0.001]
[1767965778295,0.0322513,3106.4,3105.8,0.001]
[1767965778965,0.0322513,3106.4,3104.8,0.03220819]
[1767965778966,0.0322513,3106.0,3104.8,0.03220819]
[1767965779273,0.0322513,3106.2,3104.8,0.03220819]
[1767965779476,0.0322513,3106.2,3104.1,0.99788577]
[1767965779477,0.0322513,3105.7,3104.1,0.99788577]
[1767965779796,0.0322513,3105.5,3104.2,3.22142425]
[1767965780000,0.0322513,3105.3,3104.0,0.00080096]
[1767965780499,0.0322513,3105.5,3104.5,3.22106115]
[1767965780699,0.249,3105.2,3104.3,0.00180096]
[1767965781319,0.249,3105.2,3104.0,3.22243694]
[1767965781320,0.0322513,3104.9,3104.0,0.00080096]
[1767965781607,0.0322513,3104.7,3104.0,0.00080096]
[1767965782202,0.68282394,3104.9,3104.0,0.00080096]
[1767965782203,0.249,3104.6,3104.0,0.00080096]
[1767965782388,0.24900006,3105.1,3104.0,0.00080096]
[1767965782696,0.24900006,3105.1,3104.1,0.99788577]
[1767965782697,0.249,3105.0,3104.1,0.99788577]
[1767965782863,0.249,3105.0,3104.1,1.03010122]
[1767965783509,0.249,3105.0,3104.2,3.22144191]
[1767965783794,0.249,3105.1,3104.2,7.19028077]
[1767965784002,0.249,3105.1,3104.2,0.74739695]
[1767965784207,0.24900006,3105.0,3104.2,0.74739695]
[1767965784767,0.24900006,3105.0,3104.3,0.03221338]
[1767965785003,0.00080096,3105.6,3104.3,1.03009915]
[1767965785244,0.24980096,3105.6,3104.4,0.17774961]
[1767965785361,0.24980096,3105.6,3104.5,6.44226122]
[1767965785560,0.00080096,3105.6,3104.5,6.44226122]
[1767965785767,0.249,3105.5,3104.6,0.03221026]
[1767965786167,0.249,3105.5,3104.5,6.44226122]
[1767965786366,0.249,3105.5,3104.6,0.66200108]
[1767965786977,3.22079085,3105.6,3104.6,0.66200108]
[1767965787176,3.22079085,3105.6,3104.4,0.17774961]
[1767965787177,0.249,3105.4,3104.4,0.17774961]
[1767965787378,0.249,3105.4,3103.7,0.99948785]
[1767965787379,3.25255207,3105.3,3103.7,0.99948785]
[1767965787578,3.25255207,3105.3,3104.3,3.2212927]
[1767965787791,6.47285284,3105.3,3104.2,3.22141928]
[1767965788192,0.00080096,3105.6,3104.4,3.22119562]
[1767965788513,0.00080096,3105.6,3104.5,0.0322113]
[1767965788726,0.249,3105.5,3104.6,0.64746413]
[1767965789027,0.0322513,3105.4,3104.7,0.03220923]
[1767965789224,0.0322513,3105.4,3104.2,3.22137908]
[1767965789399,0.0322513,3105.2,3103.7,0.03382168]
[1767965789588,0.0322513,3105.0,3103.7,0.03382168]
[1767965789988,0.0322513,3105.0,3103.7,3.22346253]
[1767965790298,0.0322513,3105.0,3103.7,0.00160208]
[1767965790896,0.0322513,3105.0,3103.7,3.2235036]
[1767965791101,0.0322513,3105.0,3103.7,3.22355367]
[1767965791621,0.00160208,3104.4,3103.4,0.0008088]
[1767965792620,0.249,3104.3,3103.4,0.0008088]
[1767965793619,0.249,3104.3,3102.8,0.03222895]
[1767965793620,6.44288382,3104.2,3102.8,0.03222895]
[1767965793919,0.0008088,3103.8,3102.7,0.00080096]
[1767965794117,0.0008088,3103.8,3102.8,3.22289287]
[1767965794318,0.249,3103.7,3102.8,6.47801726]
[1767965794524,0.0008088,3103.8,3102.9,0.0322513]
[1767965794721,0.0008088,3103.8,3103.0,0.68327816]
[1767965795090,0.0008088,3103.8,3103.1,0.03222583]
[1767965795495,0.0008088,3103.8,3103.1,3.22258386]
[1767965795723,0.0008088,3103.8,3103.1,6.44516772]
[1767965795893,0.0008088,3103.8,3103.1,3.22258386]
[1767965796223,0.0008088,3103.8,3103.2,0.67674962]
[1767965797411,0.0008088,3103.8,3103.2,0.64452483]
[1767965797616,0.0008088,3103.8,3103.2,7.08943175]
[1767965798197,0.0008088,3103.8,3103.2,3.86695173]
[1767965798417,0.0008088,3103.8,3103.2,3.2224269]
[1767965798593,0.0008088,3103.8,3103.2,6.44490692]
[1767965798794,0.0008088,3103.8,3103.2,3.2224269]
[1767965799112,0.0008088,3103.8,3103.2,6.44490692]
[1767965799310,0.0008088,3103.8,3103.2,3.2224269]
[1767965799525,0.0008088,3103.8,3103.4,3.22227234]
[1767965799733,0.0008088,3103.8,3103.3,0.32224269]
[1767965800029,0.0008088,3103.8,3103.0,1.05303883]
[1767965800326,0.0008088,3103.8,3103.1,3.22255008]
[1767965800527,0.0008088,3103.8,3103.0,1.02145235]
[1767965801235,0.0008088,3103.8,3103.2,3.22242776]
[1767965801432,0.0008088,3103.8,3103.3,3.22234252]
[1767965801600,0.0008088,3103.8,3103.2,0.74665345]
[1767965801931,0.0008088,3103.8,3103.2,3.96910012]
[1767965802099,0.0008088,3103.8,3103.2,7.19158014]
[1767965802300,0.0008088,3103.8,3103.3,1.05304087]
[1767965802491,0.0008088,3103.8,3103.4,1.1467101]
[1767965803091,0.0008088,3103.8,3103.5,0.03159892]
[1767965803294,0.00160208,3104.4,3103.5,0.03159892]
[1767965803494,0.00160208,3104.4,3103.6,1.02145235]
[1767965803728,0.00160208,3104.4,3103.7,3.22196088]
[1767965803934,0.00160208,3104.4,3103.8,0.42434132]
[1767965804515,0.00160208,3104.4,3103.4,0.0008096]
[1767965804516,0.03381561,3104.4,3103.4,0.0008096]
[1767965804715,0.03381561,3104.4,3103.4,0.03303232]
[1767965805139,0.03381561,3104.4,3103.5,3.22211416]
[1767965805330,0.03381561,3104.4,3103.6,3.22201975]
[1767965805643,3.22133814,3104.3,3103.4,0.0008096]
[1767965805932,0.00160208,3104.4,3103.4,0.0008096]
[1767965806140,0.00160208,3104.4,3103.4,0.03303232]
[1767965806141,0.002,3104.1,3103.4,0.03303232]
[1767965807765,0.002,3104.1,3103.5,6.44433702]
[1767965807939,0.002,3104.1,3103.6,0.64773693]
[1767965808138,0.002,3104.1,3103.6,0.67995757]
[1767965808337,0.002,3104.1,3103.6,0.64773693]
[1767965808858,0.00080096,3105.0,3104.0,0.0322513]
[1767965809058,0.00080096,3105.0,3104.2,1.04743609]
[1767965809841,0.00080096,3105.0,3104.0,0.03221649]
[1767965810046,0.00080096,3105.0,3104.1,3.22148505]
[1767965810259,0.00080096,3105.0,3104.2,3.22142566]
[1767965810621,0.00080096,3105.0,3104.2,3.86573158]
[1767965810823,0.00080096,3105.0,3104.2,8.13460958]
[1767965811652,0.00080096,3105.0,3104.3,1.04743609]
[1767965811852,0.00080096,3105.0,3104.4,6.44246874]
[1767965812161,0.252,3105.5,3104.4,10.7111392]
[1767965812162,0.002,3105.5,3104.4,10.7111392]
[1767965812342,0.002,3105.5,3104.6,1.04743609]
[1767965813244,0.00080096,3105.6,3105.0,1.04743609]
[1767965813933,0.002,3105.7,3105.2,1.04743609]
[1767965814128,0.00080096,3106.5,3105.2,1.04743609]
[1767965814815,0.00080096,3106.5,3105.1,3.22050819]
[1767965815157,0.99096883,3106.4,3105.1,3.22050819]
[1767965815854,6.43852814,3106.3,3104.8,3.22081937]
[1767965816151,6.43852814,3106.3,3104.7,3.25309926]
[1767965816152,9.65779221,3106.3,3104.7,3.25309926]
[1767965816357,9.65779221,3106.3,3104.8,0.03220819]
[1767965816754,3.21926407,3106.3,3104.8,1.07964428]
[1767965816955,3.46826407,3106.3,3104.9,1.07423805]
[1767965817159,3.46826407,3106.3,3104.9,2.12167414]
[1767965817323,6.68752814,3106.3,3104.9,2.12167414]
[1767965817525,6.68752814,3106.3,3105.0,0.03220611]
[1767965817729,3.46826407,3106.3,3105.0,0.03220611]
[1767965817963,0.249,3106.2,3105.1,6.65640441]
[1767965818461,0.002,3106.1,3105.1,6.65560358]
[1767965818660,0.002,3106.1,3105.2,1.04743609]
[1767965818858,0.002,3106.4,3105.2,1.04743609]
[1767965819426,0.002,3106.4,3105.2,1.07964013]
[1767965819627,0.002,3106.4,3105.3,2.14301128]
[1767965819945,4.28197196,3106.4,3105.4,3.22019707]
[1767965820148,0.002,3106.4,3105.4,3.22019707]
[1767965820346,0.002,3106.4,3105.4,6.44039414]
[1767965820549,0.002,3106.4,3105.4,7.08443355]
[1767965820928,0.002,3106.4,3105.4,8.13186964]
[1767965821436,0.002,3106.4,3105.5,0.03220093]
[1767965821638,0.002,3106.4,3105.1,0.2145872]
[1767965821639,6.43852814,3106.3,3105.1,0.2145872]
[1767965821976,6.44032088,3106.4,3104.5,6.44326122]
[1767965822264,6.44032088,3106.4,3104.6,0.03221026]
[1767965822655,9.65948132,3106.4,3104.6,0.03221026]
[1767965822856,1.41581177,3106.3,3104.5,0.001]
[1767965823238,0.25952256,3106.3,3104.5,1.19898213]
[1767965823440,6.44032088,3106.4,3104.7,1.16577083]
[1767965823441,3.22116044,3106.4,3104.7,1.16577083]
[1767965823640,0.002,3106.4,3104.9,1.16577083]
[1767965823871,0.249,3106.3,3105.1,1.16577083]
[1767965824170,3.46828714,3106.3,3105.2,6.473013]
[1767965824373,6.68757428,3106.3,3105.3,0.032203]
[1767965824739,0.002,3106.4,3105.3,0.032203]
[1767965825066,0.249,3106.3,3105.3,0.032203]
[1767965825931,3.21936771,3106.2,3104.6,2.25203468]
[1767965826137,3.21936771,3106.2,3104.7,6.47405545]
[1767965826359,3.21936771,3106.2,3104.7,6.44184622]
[1767965826556,9.65810313,3106.2,3104.8,0.03220819]
[1767965826761,9.65810313,3106.2,3104.5,0.001]
[1767965826762,12.87747084,3106.2,3104.5,0.001]
[1767965826965,1.15628921,3106.1,3104.6,3.22102686]
[1767965827178,1.15628921,3106.0,3104.6,0.32542392]
[1767965827460,1.40528921,3106.0,3104.5,0.001]
[1767965827878,1.15628921,3105.8,3104.3,0.00080128]
[1767965828080,7.59606123,3105.7,3104.3,0.03301466]
[1767965828235,7.59606123,3105.7,3104.3,0.00080128]
[1767965828236,1.00860612,3105.6,3104.3,0.00080128]
[1767965828587,1.15628921,3105.5,3104.3,3.22213407]
[1767965829190,0.249,3105.5,3104.4,0.03221234]
[1767965829366,0.249,3105.5,3104.5,1.16577083]
[1767965829566,1.15709017,3106.5,3104.6,1.19798109]
[1767965829740,1.15628921,3106.2,3104.7,0.03220923]
[1767965830055,0.249,3106.1,3104.8,10.82822894]
[1767965830310,0.002,3106.4,3104.9,1.19797798]
[1767965830552,0.002,3105.9,3105.1,1.16577083]
[1767965830764,0.002,3105.9,3105.1,0.03220508]
[1767965831686,0.002,3105.9,3105.0,1.11824972]
[1767965831981,0.002,3105.9,3104.8,6.44163874]
[1767965832291,0.002,3105.9,3105.1,3.22050819]
[1767965832461,0.002,3105.9,3105.0,3.2527791]
[1767965833082,0.002,3105.9,3105.1,0.03220508]
[1767965833637,0.251,3105.9,3105.0,6.4411849]
[1767965833969,0.002,3105.9,3105.1,0.64411849]
[1767965834166,0.002,3105.9,3105.3,3.22030077]
[1767965834487,0.002,3106.2,3105.4,1.1979728]
[1767965835434,0.002,3106.2,3105.3,6.44060154]
[1767965835639,0.002,3106.2,3105.4,0.03220197]
[1767965835855,0.002,3106.2,3105.5,0.64728035]
[1767965836070,0.002,3106.2,3105.6,0.03219989]
[1767965836371,0.002,3106.2,3105.3,3.22024078]
[1767965836541,0.002,3106.2,3104.5,1.92991637]
[1767965836737,0.002,3106.2,3104.8,3.22080323]
[1767965836938,0.03419989,3106.2,3104.8,3.22080323]
[1767965837350,0.03419989,3106.2,3104.7,3.22084396]
[1767965837552,0.03419989,3106.2,3104.3,0.00080128]
[1767965837553,1.15628921,3106.0,3104.3,0.00080128]
[1767965837743,1.15628921,3105.8,3104.3,0.00080128]
[1767965837946,0.28119989,3105.9,3104.0,0.0008012]
[1767965837947,1.15628921,3105.6,3104.0,0.0008012]
[1767965838144,1.15628921,3105.6,3103.7,0.0016024]
[1767965838145,0.0008012,3105.0,3103.7,0.0016024]
[1767965838348,0.0008012,3105.0,3103.7,0.033822]
[1767965838551,0.249,3104.9,3103.7,0.033822]
[1767965839487,0.0008012,3105.0,3103.8,0.03221857]
[1767965839488,0.249,3104.8,3103.8,0.03221857]
[1767965839790,0.249,3104.8,3103.7,0.033822]
[1767965839945,0.249,3104.8,3103.7,0.0016024]
[1767965840281,6.44205372,3104.6,3103.7,0.0016024]
[1767965840480,0.66910537,3104.5,3103.7,0.0016024]
[1767965841383,0.0016024,3104.4,3103.4,0.0008096]
[1767965841575,0.249,3104.3,3103.4,0.0008096]
[1767965841751,0.0016024,3104.4,3103.4,0.0008096]
[1767965842059,0.249,3104.2,3103.4,0.0008096]
[1767965842255,0.0016024,3104.4,3103.5,0.03222168]
[1767965842461,0.25,3104.3,3103.4,3.22308194]
[1767965842786,0.25,3104.3,3103.7,0.001]
[1767965843088,3.222869,3104.4,3103.7,0.001]
[1767965843296,0.25,3104.3,3103.7,0.001]
[1767965844666,3.47136078,3104.3,3103.7,0.001]
[1767965845469,0.25,3104.3,3103.7,0.001]
[1767965846168,3.47140393,3104.3,3103.7,0.001]
[1767965846387,0.0016024,3104.4,3103.7,0.001]
[1767965846997,3.22285932,3104.4,3103.7,0.001]
[1767965847290,6.79140217,3104.4,3103.7,0.001]
[1767965847462,6.79135707,3104.4,3103.4,0.0008096]
[1767965847668,0.25,3104.3,3103.4,0.0008096]
[1767965847864,0.0008012,3105.0,3104.0,1.16577083]
[1767965847865,0.0330525,3105.0,3104.0,1.16577083]
[1767965848088,0.0330525,3105.0,3103.7,0.00160272]
[1767965848089,0.0322513,3104.6,3103.7,0.00160272]
[1767965848290,0.0322513,3104.4,3103.7,0.00160272]
[1767965848462,0.0322513,3104.0,3103.7,0.00160272]
[1767965848670,0.0322513,3104.2,3103.7,0.00160272]
[1767965848868,0.0322513,3104.0,3103.7,0.00160272]
[1767965849465,0.0322513,3104.2,3103.7,0.00160272]
[1767965849997,0.25,3104.5,3103.7,0.00160272]
[1767965850167,0.0008012,3105.0,3103.7,0.02975818]
[1767965850499,0.25,3104.9,3103.8,10.83134204]
[1767965850798,0.25,3104.9,3103.9,1.11426297]
[1767965851173,0.0008012,3105.0,3103.9,1.11426297]
[1767965851363,0.25,3104.9,3103.9,2.2800338]
[1767965851766,0.0322513,3104.8,3103.9,1.11426297]
[1767965852003,0.0322513,3104.6,3103.9,1.08611002]
[1767965852172,0.0322513,3104.6,3104.0,0.75298242]
[1767965852378,0.0322513,3104.7,3103.7,0.00160272]
[1767965852573,0.0322513,3104.5,3103.7,0.00160272]
[1767965852870,0.0322513,3104.5,3104.0,3.22164277]
[1767965853099,0.0322513,3104.7,3104.0,3.22164277]
[1767965853403,0.0322513,3104.5,3104.0,3.22164277]
[1767965853970,0.0322513,3104.5,3104.0,3.54380705]
[1767965854396,0.0322513,3104.5,3104.0,3.54373089]
[1767965854580,0.0322513,3104.4,3103.7,0.00160272]
[1767965854776,0.0322513,3104.2,3103.7,0.00160272]
[1767965855003,0.25,3104.1,3103.7,3.22448758]
[1767965855604,0.25,3104.1,3103.8,3.22179813]
[1767965856001,0.25,3104.1,3103.7,3.22452102]
[1767965856301,0.002,3104.2,3103.7,3.22456304]
[1767965856302,0.25,3104.0,3103.7,3.22456304]
[1767965856507,0.002,3104.2,3103.7,0.32505902]
[1767965856671,0.25,3104.1,3103.8,0.02816061]
[1767965856872,0.25,3104.1,3103.7,0.00260272]
[1767965857170,0.002,3104.2,3103.7,0.00260272]
[1767965857368,0.25,3104.1,3103.7,0.00260272]
[1767965858081,0.002,3104.5,3103.7,0.00260272]
[1767965858417,0.25,3104.4,3103.7,0.00260272]
[1767965858632,0.25,3104.4,3103.7,0.67545924]
[1767965858974,0.002,3104.5,3103.7,0.67545924]
[1767965859213,0.25,3104.4,3103.7,0.67545924]
[1767965860434,0.25,3104.4,3103.7,0.00260272]
[1767965861899,0.0342513,3104.5,3103.7,0.00260272]